Cogmind - Beta 16 @@@ ROGUE MODE // 2025.10.31 @ 22:30:31 Player: daxter767676 Result: Destroyed by S-10 Pest with Light Assault Rifle Performance ------------- Evolutions (0) 0 Regions Visited (3) 600 Robots Destroyed (21) 105 Value Destroyed (408) 408 Prototype IDs (0) 0 Alien Tech Used (0) 0 Bonus (30) 30 TOTAL SCORE: 1143 Bonus ------- Follower Combat Kills 30 Cogmind --------- Core Integrity 0/250 Matter 288/300 Energy 125/125 System Corruption 0% Temperature Cool (0) Movement Rolling (95) Ox1 Location -10/Subcaves Parts ------- > --- POWER (1) -------- Light Ion Engine > --- PROPULSION (2) --- Wheel Wheel > --- UTILITY (2) ------ Large Storage Unit Structural Scanner > --- WEAPON (2) ------- Small Laser Light Assault Rifle > --- INVENTORY (15) --- Light Ion Engine Aluminum Leg Aluminum Leg Aluminum Leg Aluminum Leg Aluminum Leg High-capacity Matter Pod (200) Experimental Sensor Array Improved Terrain Scanner Light Assault Rifle Grenade Launcher Datajack Mining Laser Plasma Flamer Hammer Peak State ------------ > --- POWER ------------ Ion Engine > --- PROPULSION ------- Aluminum Leg Aluminum Leg > --- UTILITY ---------- Small Storage Unit Improved Terrain Scanner > --- WEAPON ----------- EM Pulse Gun Light Assault Rifle > --- INVENTORY -------- Light Ion Engine Light Ion Engine Light Treads Light Treads Wheel Wheel Compact Wheel Assault Rifle [Rating: 9] Favorites ----------- Power Light Ion Engine Engine Light Ion Engine Propulsion Wheel Leg Aluminum Leg Wheel Wheel Utility Structural Scanner Device Structural Scanner Storage Large Storage Unit Weapon Light Assault Rifle Energy Gun EM Pulse Gun Ballistic Gun Light Assault Rifle Impact Weapon Hammer Special Melee Weapon Datajack Build | -11 -10 -10 -10 ------- Run | Yrd Mat Min Sub Slots Evolved . | . . . . Power . | . . . . Propulsion . | . . . . Utility . | . . . . Weapon . | . . . . Parts Attached 22 | 3 13 3 3 Power 3 | . 2 . 1 Engine 3 | . 2 . 1 Core . | . . . . Reactor . | . . . . Propulsion 8 | 2 5 1 . Treads . | . . . . Leg 2 | . 2 . . Wheel 6 | 2 3 1 . Hover . | . . . . Flight . | . . . . Utility 4 | 1 3 . . Device 3 | 1 2 . . Storage 1 | . 1 . . Processor . | . . . . Hackware . | . . . . Protection . | . . . . Artifact . | . . . . Weapon 7 | . 3 2 2 Energy Gun 1 | . . . 1 Energy Cannon . | . . . . Ballistic Gun 4 | . 2 1 1 Ballistic Cannon . | . . . . Launcher . | . . . . Special Weapon . | . . . . Impact Weapon 1 | . . 1 . Slashing Weapon . | . . . . Piercing Weapon . | . . . . Special Melee Weapon 1 | . 1 . . Unidentified Prototypes . | . . . . Parts Lost 9 | . 5 4 . Power 2 | . 1 1 . Propulsion 4 | . 3 1 . Utility . | . . . . Weapon 3 | . 1 2 . Highest Loss Streak 4 | . 4 4 . To Critical Strikes . | . . . . Average Backups 12 | 7 10 14 14 Power 1 | 1 1 2 1 Propulsion 4 | 4 4 5 5 Utility 2 | . 2 3 3 Weapon 2 | 1 1 3 4 Tool/Special . | . . . . Unused Backups 12 | . 3 . 9 Power 1 | . . . 1 Propulsion 4 | . 1 . 3 Utility 4 | . 2 . 2 Weapon 3 | . . . 3 Tool/Special . | . . . . Average Slot Usage (%) 88 | . 95 82 95 Engine 6 | . 13 . 9 Wheel 26 | . 25 26 28 Device 14 | . 14 14 14 Storage 14 | . 14 14 14 Ballistic Gun 18 | . 24 14 15 Impact Weapon 6 | . . 12 6 Peak Build Rating 9 | 9 9 8 9 Average Rating 7 | 6 7 7 8 On Entrance 7 | 6 9 8 8 Avg Prop Armor Cover (%) 9 | 9 9 . . Naked Turns . | . . . . Heaviest Build 27 | 14 27 24 27 Greatest Support 26 | 20 26 20 20 Greatest Overweight (x) 2 | 1 2 2 1 Average Overweight (x) . | . . 1 1 Largest Inventory Capacity 15 | 8 15 15 15 Average Capacity 13 | 8 13 15 15 Most Carried 15 | 8 15 15 15 Average Carried 12 | 7 10 14 14 Final Capacity 15 | 8 15 15 15 Final Carried 15 | 8 15 15 15 Class Distribution -------------------- 96% | Mutant 3% | Scavenger-Mutant Dominant Class ---------------- Mutant | -10/Materials Mutant | -10/Mines Scavenger-Mutant | -10/Subcaves Resources | -11 -10 -10 -10 ----------- Run | Yrd Mat Min Sub Matter Collected 742 | 245 258 117 122 Remotely . | . . . . Salvage Created 599 | 160 348 19 72 Parts 50 | 13 28 2 7 Haulers Intercepted . | . . . . Recyclers Shooed 1 | . 1 . . Parts Field Recycled . | . . . . Retrieved Matter . | . . . . Parts Self-Destructed 2 | . . . 2 Prevented . | . . . . Parts Restored . | . . . . Kills | -11 -10 -10 -10 ------- Run | Yrd Mat Min Sub Combat Hostiles Destroyed 17 | . 13 1 3 Guns 17 | . 13 1 3 Classes Destroyed 5 | 2 2 . 1 Tunneler 3 | 3 . . . Recycler 1 | 1 . . . Swarmer 9 | . 6 1 2 Grunt 7 | . 7 . . Subdweller 1 | . . . 1 Best Kill Streak 4 | 3 4 1 2 Combat Bots Only 4 | . 4 1 2 Max Kills in Single Turn 2 | 1 2 1 1 Gunslinging . | . . . . Exploded . | . . . . Melee . | . . . . Uniques/NPCs Destroyed . | . . . . Combat | -11 -10 -10 -10 -------- Run | Yrd Mat Min Sub Hostile Shots Fired 120 | . 82 28 10 Missed 30 | . 20 7 3 Hits 90 | . 62 21 7 Projectile 90 | . 62 21 7 Critical Strikes 1 | . 1 . . Damage Taken 898 | . 683 162 53 Core 255 | . 194 51 10 Absorbed by Shields . | . . . . Regen/Repaired (Parts) 14 | . 14 . . Core Remaining (%) 100 | 100 . . . Volleys Fired 77 | 15 47 9 6 Largest 2 | 2 2 2 2 Hottest 60 | 60 40 40 60 Shots Fired 132 | 30 79 13 10 Gun 132 | 30 79 13 10 Cannon . | . . . . Launcher . | . . . . Special . | . . . . Kinetic 113 | 15 79 13 6 Thermal 4 | . . . 4 Explosive . | . . . . Electromagnetic 15 | 15 . . . Robot Hit Streak 10 | 4 10 4 4 Robot Miss Streak 3 | 2 2 3 2 Penetration Max . | . . . . Secondary Targets 3 | . 3 . . Max Gunslinging Chain 1 | . 1 . . Shots Hit Robots 86 | 18 56 7 5 Core Hits 32 | 6 22 1 3 Critical Kills . | . . . . Critical Parts Destroyed . | . . . . Critical Strikes . | . . . . Melee Attacks . | . . . . Impact . | . . . . Slashing . | . . . . Piercing . | . . . . Sneak Attacks . | . . . . Combat Hostiles . | . . . . Follow-up Attacks . | . . . . Damage Inflicted 888 | 181 599 55 53 Guns 888 | 181 599 55 53 Cannons . | . . . . Explosions . | . . . . Melee . | . . . . Ramming . | . . . . Kinetic 742 | 68 599 55 20 Thermal 33 | . . . 33 Explosive . | . . . . Electromagnetic 113 | 113 . . . Impact . | . . . . Slashing . | . . . . Piercing . | . . . . Highest Corruption . | . . . . Average Corruption . | . . . . Corruption Purged . | . . . . Corruption Blocked . | . . . . Overload Shots . | . . . . Overflow Damage . | . . . . Projectiles . | . . . . Explosions . | . . . . Melee . | . . . . Knockbacks . | . . . . Impact . | . . . . Kinetic . | . . . . Secondary . | . . . . Self-Inflicted Damage . | . . . . Shots . | . . . . Rammed . | . . . . Targets Rammed . | . . . . Kicked . | . . . . Crushed . | . . . . Highest Temperature 40 | 40 27 . . Average Temperature 14 | 19 8 . . Received Heat Transfer 249 | . 249 . . Siege Activations . | . . . . Martial Activations . | . . . . Shielding Activations . | . . . . Robots Disrupted . | . . . . Combat Hostiles . | . . . . Robots Corrupted . | . . . . Combat Hostiles . | . . . . Parts Fried . | . . . . Impact Corruptions . | . . . . Robots Melted . | . . . . Combat Hostiles . | . . . . Parts Melted . | . . . . Heat Transferred 75 | . . . 75 Parts Sabotaged . | . . . . Parts Stolen . | . . . . Parts Stripped . | . . . . Power Chain Reactions . | . . . . Alert | -11 -10 -10 -10 ------- Run | Yrd Mat Min Sub Maximum Alert Level . | . . . . Low Security (%) 100 | 100 100 100 . Level 1 . | . . . . Level 2 . | . . . . Level 3 . | . . . . Level 4 . | . . . . Level 5 . | . . . . High Security . | . . . . Max Security . | . . . . Peak Influence 120 | 10 120 20 . Initial 13 | . . 13 . Average 20 | 1 49 . . Influence Increases 585 | 20 460 20 85 Destroy 0b10 Robot/C 320 | . 260 20 40 Destroy 0b10 Robot/NC 20 | 20 . . . Destroy Leader 60 | . 60 . . Successful Hack 5 | . 5 . . Select Force Hacks 60 | . 60 . . Lose Combat Pursuer 120 | . 75 . 45 Influence Decreases 510 | 20 426 54 10 Entered New Map 21 | . . 21 . Time Decay 296 | 20 256 10 10 Lost Part 73 | . 50 23 . Purge Threat 120 | . 120 . . Squads Dispatched 4 | . 4 . . Investigation 2 | . 2 . . Extermination . | . . . . Reinforcement 2 | . 2 . . Assault . | . . . . Garrison . | . . . . Intercept . | . . . . Searches Triggered . | . . . . Construction Impeded . | . . . . Haulers Reinforced . | . . . . Active Scanning Responses . | . . . . Cargo Convoy Interrupts . | . . . . Stealth | -11 -10 -10 -10 --------- Run | Yrd Mat Min Sub Distress Signals 2 | . 2 . . Communications Jammed . | . . . . Distress Signals . | . . . . Times Spotted 34 | . 24 3 7 Peak Tracking Total 5 | . 5 3 4 Tactical Retreats 5 | . 3 . 2 Traps | -11 -10 -10 -10 ------- Run | Yrd Mat Min Sub Traps Triggered . | . . . . Indirectly . | . . . . Trap Hack Attempts . | . . . . Triggered . | . . . . Disarmed . | . . . . Reprogrammed . | . . . . Reused . | . . . . Traps Extracted . | . . . . Installed . | . . . . Triggered . | . . . . Machines | -11 -10 -10 -10 ---------- Run | Yrd Mat Min Sub Machines Disabled . | . . . . Max in Single Turn . | . . . . Machines Repaired . | . . . . Machines Dismantled . | . . . . Machines Sabotaged . | . . . . Overloaded Fab Kills . | . . . . Hacking | -11 -10 -10 -10 --------- Run | Yrd Mat Min Sub Machines Accessed 7 | . 7 . . Terminals 4 | . 4 . . Fabricators . | . . . . Repair Stations 1 | . 1 . . Recycling Units 2 | . 2 . . Scanalyzers . | . . . . Garrison Access . | . . . . Total Hacks 13 | . 13 . . Successful 10 | . 10 . . Failed 3 | . 3 . . Catastrophic 1 | . 1 . . Database Lockouts . | . . . . Manual 6 | . 6 . . Terminals 9 | . 9 . . Fabricators . | . . . . Repair Stations 2 | . 2 . . Recycling Units 2 | . 2 . . Scanalyzers . | . . . . Garrison Access . | . . . . Terminal Hacks 4 | . 4 . . Record 1 | . 1 . . Unreport Threat 1 | . 1 . . Locate Traps 1 | . 1 . . Recall Reinforcements 1 | . 1 . . Fabricator Hacks . | . . . . Repair Station Hacks 2 | . 2 . . Scan Component 1 | . 1 . . Repair 1 | . 1 . . Recycling Unit Hacks . | . . . . Scanalyzer . | . . . . Garrison Access Hacks . | . . . . Unauthorized Hacks 4 | . 4 . . Terminals 2 | . 2 . . Botnet 1 | . 1 . . Skim 1 | . 1 . . Fabricators . | . . . . Repair Stations . | . . . . Recycling Units 2 | . 2 . . Tunnel 2 | . 2 . . Scanalyzers . | . . . . Garrison Access . | . . . . Data Cores Recovered . | . . . . Used . | . . . . Hacking Detections 5 | . 5 . . Full Trace Events 1 | . 1 . . Feedback Events . | . . . . Feedback Blocked . | . . . . Robot Schematics Acquired . | . . . . Robots Built . | . . . . Authchips . | . . . . Time . | . . . . Total Robot Build Rating . | . . . . Part Schematics Acquired . | . . . . Parts Built . | . . . . Authchips . | . . . . Time . | . . . . Total Part Build Rating . | . . . . Part Studies Acquired . | . . . . Parts Repaired 1 | . 1 . . Time 38 | . 38 . . Parts Recycled . | . . . . Recycled Matter . | . . . . Retrieved Matter . | . . . . Retrieved Components . | . . . . Parts Scanalyzed . | . . . . Part Schematics Acquired . | . . . . Parts Damaged . | . . . . Bothacking | -11 -10 -10 -10 ------------ Run | Yrd Mat Min Sub Used RIF Installer . | . . . . Robots Hacked . | . . . . Non-combat . | . . . . Combat . | . . . . Robot Hacks Applied . | . . . . Relay Couplers Released . | . . . . Fabnet Peak Effective % . | . . . . Robots Rewired . | . . . . Allies Hacked . | . . . . Hacks Repelled . | . . . . Allies | -11 -10 -10 -10 -------- Run | Yrd Mat Min Sub Total Allies 3 | . . 3 . Largest Group 3 | . . 3 3 Highest-Rated Group 40 | . . 40 40 Highest-Rated Ally 16 | . . 16 16 Total Orders . | . . . . Ally Attacks 16 | . . . 16 Total Damage 228 | . . . 228 Kills 1 | . . . 1 Allies Corrupted . | . . . . Allies Melted . | . . . . Intel | -11 -10 -10 -10 ------- Run | Yrd Mat Min Sub Active Infowar (turns) 1488 | 27 624 759 78 Terrain 104 | 27 77 . . Structural 1348 | . 511 759 78 Seismic 36 | . 36 . . Robot Analysis Total . | . . . . Derelict Logs Recovered 1 | . . 1 . Drone Launches . | . . . . Drone Recoveries . | . . . . Exploration | -11 -10 -10 -10 ------------- Run | Yrd Mat Min Sub Turns Passed 1575 | 114 624 759 78 Spaces Moved 975 | 57 411 448 59 Core . | . . . . Treads . | . . . . Legs 40 | 39 1 . . Wheels 935 | 18 410 448 59 Hover . | . . . . Flight . | . . . . Fastest Speed 80 | 80 80 95 95 Average Speed 96 | 107 95 96 95 Slowest Speed 190 | 120 190 110 95 Overloaded Moves . | . . . . Propulsion Burnouts . | . . . . Robots Hopped . | . . . . Potential Cave-ins . | . . . . Cave-ins Triggered . | . . . . Exploration Rate (%) 40 | 5 59 92 5 Regions Visited 3 Branch Regions 2 Pre-discovered Areas 4 | . 2 2 . Known Exits Taken . | . . . . Unknown Exits Taken 3 | 1 1 1 . Scrap Searched 1 | . . 1 . Spaces Dug . | . . . . Terrain Destroyed . | . . . . Melee . | . . . . Projectile . | . . . . AOE . | . . . . Terrain Rammed . | . . . . Walls Destroyed . | . . . . Machines Disabled . | . . . . Actions | -11 -10 -10 -10 --------- Run | Yrd Mat Min Sub Total 1490 | 82 573 762 73 Wait 384 | . 85 299 . Move 972 | 56 410 447 59 Hop . | . . . . Pick Up 22 | 4 13 3 2 Fast Attach 7 | 3 3 1 . Attach 7 | . 4 2 1 Detach . | . . . . Swap 10 | . 7 . 3 Drop 11 | 4 4 1 2 Fire 77 | 15 47 9 6 Melee . | . . . . Ram . | . . . . Kick . | . . . . Crush . | . . . . Escape Stasis . | . . . . Rewire . | . . . . Trap . | . . . . Miscellaneous . | . . . . Route ------- -11/Scrapyard -10/Materials (discovered 3 exits: [*Mat] / [*Min x2]) -10/Mines (discovered 3 exits: [*Mat x2] / [*Sub]) -10/Subcaves History --------- Turn | Location | Event 24 | -11/Scrapyard | Discovered new exit (range 2) 115 | -11/Scrapyard | Entered Materials 141 | -10/Materials | Discovered new exit (range 6) 294 | -10/Materials | Repaired Imp. Terrain Scanner 313 | -10/Materials | Build established: Mutant 324 | -10/Materials | Discovered new exit (range 5) 524 | -10/Materials | Core integrity fell below 50% 570 | -10/Materials | Lost 4 parts (1p2n1w) 599 | -10/Materials | Discovered new exit (range 9) 739 | -10/Materials | Entered Mines 744 | -10/Mines | Core integrity fell below 20% 758 | -10/Mines | Met a Derelict bent on vengeance 787 | -10/Mines | Discovered new exit (range 3) 789 | -10/Mines | Lost 4 parts (1p1n2w) 840 | -10/Mines | Discovered new exit (range 15) 888 | -10/Mines | A weapon hastily lodged in a ceiling crevice suddenly fell to the ground 937 | -10/Mines | Assisted by bots powering up and referring to "LRC-V3" 941 | -10/Mines | Learned location of Zion (-6) 981 | -10/Mines | Found a damaged Exp. Sensor Array with a note attached 984 | -10/Mines | Found Prototype Device 1452 | -10/Mines | Learned location of Storage (-9) 1460 | -10/Mines | Discovered new exit (range 5) 1498 | -10/Mines | Entered Subcaves 1498 | -10/Subcaves | Accompanied by 3 allies 1499 | -10/Subcaves | Approached by a straggling Scientist 1547 | -10/Subcaves | Lost 4 allies 1576 | -10/Subcaves | Destroyed by S-10 Pest with Light Assault Rifle Last Messages --------------- 01510_ Trooper 1a destroyed. 01516_ Trooper 1b destroyed. 01518_ BU-2VF(R) destroyed. 01521_ Subatomizers dissect the Sml. Laser. 01522_ Acquired 36 matter. 01523_ Acquired 45 matter. 01524_ Acquired 19 matter. 01528_ Acquired 9 matter. 01529_ Acquired Sml. Laser. 01536_ Subatomizers dissect the Heat Sink. 01538_ Acquired 11 matter. 01546_ Subatomizers dissect the Wheel. 01554_ S-10 Pest destroyed. 01560_ Acquired 2 matter. 01562_ Dropped Lgt. Assault Rifle. 01562_ Acquired Lgt. Assault Rifle. 01564_ Dropped Lgt. Assault Rifle. 01568_ Lgt. Ion Engine fries itself beyond repair. 01568_ Subatomizers dissect the Wheel. 01574_ Flight Unit fries itself beyond repair. Map ----- +----------------------------------------------------+ | ??????????## #####???????????????????????? | | ??????????## ######????????????????????? | | ??????????##### ## #####????????????????????? | | ??????????######### ##????????????????????? | | ?????????????###### ##????????????????????? | | ?????????????????### ! ####??????????????????? | | ?????????????????#### = #####?????????????????? | | ??????????????????#### ###?????????????????? | | ???????????????????### ##?????????????????? | | ????????????????????## ##?????????????????? | | ????????????????????## ###?????????????????? | | ???????????????????#####&& ####?????????????????? | | ???????????????????#####%&!####??????????????????? | | ???????????????????## !&% ####??????????????????? | | ???????????????????## ######????????????????? | | ???????????????????### ####????????????????? | | ???????????????????#### ## "" ##????????????????? | | ????????????????????### ## ""##????????????????? | | ????????????????????## ## ####???????????????? | | ???????????????????#### # ###???????????????? | | ??????????????????#### "#" #####????????????? | | ??????????????????### """""%# #####????????????? | | ??????????????????## =%"""[ ##????????????? | | ??????????????????## *! " ##????????????? | | ??????????????????## "##????????????? | | ????????????????#### @ "##????????????? | | ????????????????## "##????????????? | | ????????????????## ss ###????????????? | | ????????????????## ### ###????????????? | | ????????????????## ##### ###???????????? | | ?????????????##" "### ##???????????? | | ?????????????## ????#### """"""##???????????? | | ?????????????## ?????#### " "" "##???????????? | | ?????????????##" ???????#### """"###???????????? | | ?????????????##" "?????????### ?###????????????? | | ?????????????##"""???????????## ????????????????? | | ???????????????????????????????? ????????????????? | | ???????????????????????????????? ???????????????? | | ?????????????????????????????????????????????????? | | ?????????????????????????????????????????????????? | | ?????????????????????????????????????????????????? | | ?????????????????????????????????????????????????? | | ?????????????????????????????????????????????????? | | ?????????????????????????????????????????????????? | | ?????????????????????????????????????????????????? | | ?????????????????????????????????????????????????? | | ?????????????????????????????????????????????????? | | ?????????????????????????????????????????????????? | | ?????????????????????????????????????????????????? | | ?????????????????????????????????????????????????? | +----------------------------------------------------+ Best States ------------- Heat Dissipation 25 Energy Generation 10 Energy Capacity 250 Matter Stores 300 Matter Capacity 300 Sight Range 16 Terrain Scan Range 16 Terrain Scan Density 10 Evasion (%) 55 Item Schematics ----------------- None Robot Schematics ------------------ None Fabricated ------------ Nothing Repaired ---------- Imp. Terrain Scanner | 36% | -10/Materials Studied --------- None Alien Tech Used ----------------- None Achievements -------------- None Challenges ------------ None Game ------ Seed PotentialAbsorptionNanovents Manual? 0 Play Time 00:19:32 Cumulative 149.8 hours Start 2025.10.31 @ 22:08:20 End 2025.10.31 @ 22:30:31 Sessions 1 Manual Loads 0 Difficulty Rogue Special Mode None Game No. 154 Rogue 152 Adventurer 2 Explorer 0 Win Type - Total 0 Types 0/0/0/0/0/0/0/0/0/0 Lore% 64 Gallery% 56 Achievement% 28 Wizard Run 0 Options --------- Layout 2 ASCII 0 Keyboard 1 Movement Vi Keybinds 0 Fullscreen 1 Font 42/SmallcapsLarge Map View 59x48 Zoom Use 0% Tactical HUD 1 Map Filters NONE Filters NONE Steam 1 RUN: d0dd578e-aecd-46cb-8316-76d672829e21